[Event "January 2 Late 2024"]
[Site "https://www.chess.com"]
[Date "2024.01.02"]
[Round "6"]
[White "Dobrijevic, Milan"]
[Black "Hamitevici, Vladimir"]
[Result "0-1"]
[Board "101"]
[TimeControl "180+1"]
[WhiteFideId "931632"]
[BlackFideId "13902393"]
[WhiteElo "2439"]
[BlackElo "2650"]
[WhiteTeam "SRB"]
[BlackTeam "MDA"]
[WhiteClock "0:00:08"]
[BlackClock "0:00:14"]

1. e4 {[%clk 0:03:00]}  g6 {[%clk 0:03:00]} 2. d4 {[%clk 0:02:55]}  d6 {[%clk 0:03:00]} 3. h4 {[%clk 0:02:55]}  Nf6 {[%clk 0:02:59]} 4. Nc3 {[%clk 0:02:52]}  Bg7 {[%clk 0:02:57]} 5. Be2 {[%clk 0:02:49]}  h5 {[%clk 0:02:55]} 6. f3 {[%clk 0:02:45]}  c6 {[%clk 0:02:49]} 7. Bg5 {[%clk 0:02:45]}  Nbd7 {[%clk 0:02:47]} 8. Nh3 {[%clk 0:02:44]}  b5 {[%clk 0:02:42]} 9. Qd2 {[%clk 0:02:44]}  a6 {[%clk 0:02:21]} 10. O-O-O {[%clk 0:02:38]}  Qc7 {[%clk 0:02:20]} 11. Kb1 {[%clk 0:02:20]}  Bb7 {[%clk 0:02:15]} 12. Nf2 {[%clk 0:02:07]}  c5 {[%clk 0:02:14]} 13. dxc5 {[%clk 0:01:56]}  Nxc5 {[%clk 0:02:15]} 14. Nd3 {[%clk 0:01:44]}  Ne6 {[%clk 0:02:05]} 15. Be3 {[%clk 0:01:25]}  Nd7 {[%clk 0:02:06]} 16. Nd5 {[%clk 0:01:20]}  Bxd5 {[%clk 0:02:05]} 17. exd5 {[%clk 0:01:21]}  Nd4 {[%clk 0:02:01]} 18. Nb4 {[%clk 0:01:08]}  Nxe2 {[%clk 0:01:57]} 19. Qxe2 {[%clk 0:01:08]}  Rc8 {[%clk 0:01:27]} 20. Bd4 {[%clk 0:00:56]}  Bxd4 {[%clk 0:01:16]} 21. Rxd4 {[%clk 0:00:57]}  Ne5 {[%clk 0:01:09]} 22. f4 {[%clk 0:00:52]}  Ng4 {[%clk 0:00:53]} 23. Nc6 {[%clk 0:00:49]}  Kf8 {[%clk 0:00:52]} 24. Re1 {[%clk 0:00:48]}  e6 {[%clk 0:00:43]} 25. dxe6 {[%clk 0:00:39]}  Qxc6 {[%clk 0:00:43]} 26. exf7 {[%clk 0:00:39]}  Kg7 {[%clk 0:00:38]} 27. f5 {[%clk 0:00:29]}  Qc5 {[%clk 0:00:26]} 28. c3 {[%clk 0:00:27]}  Qxf5+ {[%clk 0:00:24]} 29. Ka1 {[%clk 0:00:24]}  Rhf8 {[%clk 0:00:22]} 30. Rf1 {[%clk 0:00:22]}  Qe5 {[%clk 0:00:22]} 31. Qf3 {[%clk 0:00:20]}  Rc7 {[%clk 0:00:18]} 32. Rfd1 {[%clk 0:00:16]}  Rcxf7 {[%clk 0:00:17]} 33. Qd3 {[%clk 0:00:16]}  Nf2 {[%clk 0:00:16]} 34. Qd2 {[%clk 0:00:12]}  Nxd1 {[%clk 0:00:16]} 35. Rxd6 {[%clk 0:00:08]}  Ne3 {[%clk 0:00:14]} 0-1

[Event "January 2 Late 2024"]
[Site "https://www.chess.com"]
[Date "2024.01.02"]
[Round "6"]
[White "Goryachkina, Aleksandra"]
[Black "Gabdushev, Ruslan"]
[Result "0-1"]
[Board "102"]
[TimeControl "180+1"]
[WhiteFideId "4147103"]
[BlackFideId "4137833"]
[WhiteElo "2645"]
[BlackElo "2427"]
[WhiteTeam "FID"]
[BlackTeam "RUS"]
[WhiteClock "0:02:02"]
[BlackClock "0:01:39"]

1. e4 {[%clk 0:03:00]}  Nc6 {[%clk 0:02:59]} 2. Nf3 {[%clk 0:02:59]}  d6 {[%clk 0:02:59]} 3. h3 {[%clk 0:02:57]}  Nf6 {[%clk 0:02:58]} 4. Nc3 {[%clk 0:02:56]}  e5 {[%clk 0:02:57]} 5. Bc4 {[%clk 0:02:56]}  Be7 {[%clk 0:02:55]} 6. d3 {[%clk 0:02:56]}  O-O {[%clk 0:02:54]} 7. O-O {[%clk 0:02:56]}  Na5 {[%clk 0:02:45]} 8. a4 {[%clk 0:02:56]}  Nxc4 {[%clk 0:02:44]} 9. dxc4 {[%clk 0:02:56]}  h6 {[%clk 0:02:41]} 10. b3 {[%clk 0:02:55]}  c6 {[%clk 0:02:34]} 11. Ba3 {[%clk 0:02:53]}  Qc7 {[%clk 0:02:33]} 12. Re1 {[%clk 0:02:43]}  Be6 {[%clk 0:02:20]} 13. Qd2 {[%clk 0:02:43]}  Rad8 {[%clk 0:02:17]} 14. Rad1 {[%clk 0:02:42]}  Ne8 {[%clk 0:02:12]} 15. Qe3 {[%clk 0:02:28]}  a5 {[%clk 0:02:03]} 16. c5 {[%clk 0:02:22]}  dxc5 {[%clk 0:02:00]} 17. Bxc5 {[%clk 0:02:22]}  Rxd1 {[%clk 0:01:53]} 18. Rxd1 {[%clk 0:02:22]}  Bxc5 {[%clk 0:01:48]} 19. Qxc5 {[%clk 0:02:23]}  f6 {[%clk 0:01:46]} 20. Nd5 {[%clk 0:02:02]}  cxd5 {[%clk 0:01:39]} 0-1

[Event "January 2 Late 2024"]
[Site "https://www.chess.com"]
[Date "2024.01.02"]
[Round "6"]
[White "Janaszak, Dawid"]
[Black "Bhavikatti, Neil"]
[Result "1/2-1/2"]
[Board "103"]
[TimeControl "180+1"]
[WhiteFideId "1119206"]
[BlackFideId "30935024"]
[WhiteElo "2624"]
[BlackElo "2461"]
[WhiteTeam "POL"]
[BlackTeam "USA"]
[WhiteClock "0:00:09"]
[BlackClock "0:00:06"]

1. d4 {[%clk 0:02:53]}  d5 {[%clk 0:03:00]} 2. Bf4 {[%clk 0:02:51]}  Nf6 {[%clk 0:02:58]} 3. e3 {[%clk 0:02:48]}  e6 {[%clk 0:02:58]} 4. Nf3 {[%clk 0:02:48]}  Bd6 {[%clk 0:02:59]} 5. Nbd2 {[%clk 0:02:48]}  c5 {[%clk 0:02:57]} 6. Bb5+ {[%clk 0:02:46]}  Nc6 {[%clk 0:02:54]} 7. Bxc6+ {[%clk 0:02:40]}  bxc6 {[%clk 0:02:54]} 8. Bxd6 {[%clk 0:02:38]}  Qxd6 {[%clk 0:02:54]} 9. c3 {[%clk 0:02:38]}  cxd4 {[%clk 0:02:50]} 10. exd4 {[%clk 0:02:34]}  c5 {[%clk 0:02:47]} 11. Qa4+ {[%clk 0:02:34]}  Bd7 {[%clk 0:02:45]} 12. Qa3 {[%clk 0:02:34]}  Rc8 {[%clk 0:02:29]} 13. Nb3 {[%clk 0:02:33]}  Ne4 {[%clk 0:02:28]} 14. Nfd2 {[%clk 0:02:20]}  Qf4 {[%clk 0:02:00]} 15. Nf3 {[%clk 0:01:58]}  cxd4 {[%clk 0:01:53]} 16. Nbxd4 {[%clk 0:01:53]}  e5 {[%clk 0:01:39]} 17. Ne2 {[%clk 0:01:52]}  Qf6 {[%clk 0:01:32]} 18. Qxa7 {[%clk 0:01:40]}  Nc5 {[%clk 0:01:20]} 19. O-O {[%clk 0:01:33]}  Bg4 {[%clk 0:01:03]} 20. b4 {[%clk 0:01:05]}  Bxf3 {[%clk 0:01:01]} 21. gxf3 {[%clk 0:01:06]}  Qxf3 {[%clk 0:00:32]} 22. bxc5 {[%clk 0:00:59]}  Qxe2 {[%clk 0:00:32]} 23. Qa4+ {[%clk 0:00:59]}  Ke7 {[%clk 0:00:32]} 24. Rfe1 {[%clk 0:00:59]}  Qh5 {[%clk 0:00:29]} 25. c6 {[%clk 0:00:37]}  Rhd8 {[%clk 0:00:27]} 26. Qb4+ {[%clk 0:00:37]}  Rd6 {[%clk 0:00:15]} 27. Re3 {[%clk 0:00:27]}  Rxc6 {[%clk 0:00:15]} 28. Rae1 {[%clk 0:00:27]}  f6 {[%clk 0:00:15]} 29. Qb7+ {[%clk 0:00:27]}  Ke6 {[%clk 0:00:16]} 30. Rg3 {[%clk 0:00:25]}  g6 {[%clk 0:00:15]} 31. Qa8 {[%clk 0:00:23]}  Rc7 {[%clk 0:00:14]} 32. Qg8+ {[%clk 0:00:22]}  Rf7 {[%clk 0:00:12]} 33. a4 {[%clk 0:00:23]}  Rd7 {[%clk 0:00:11]} 34. a5 {[%clk 0:00:22]}  f5 {[%clk 0:00:11]} 35. a6 {[%clk 0:00:21]}  f4 {[%clk 0:00:11]} 36. Rg2 {[%clk 0:00:18]}  Kf6 {[%clk 0:00:11]} 37. Qe8 {[%clk 0:00:17]}  e4 {[%clk 0:00:11]} 38. Qb8 {[%clk 0:00:14]}  Rfe7 {[%clk 0:00:11]} 39. Qxf4+ {[%clk 0:00:14]}  Kg7 {[%clk 0:00:11]} 40. Rg5 {[%clk 0:00:14]}  Qh3 {[%clk 0:00:11]} 41. Rg3 {[%clk 0:00:14]}  Qe6 {[%clk 0:00:11]} 42. Ra1 {[%clk 0:00:12]}  Qb6 {[%clk 0:00:11]} 43. Qe3 {[%clk 0:00:08]}  Qc7 {[%clk 0:00:09]} 44. Qd4+ {[%clk 0:00:07]}  Qe5 {[%clk 0:00:09]} 45. Qc5 {[%clk 0:00:04]}  Ra7 {[%clk 0:00:08]} 46. Qb6 {[%clk 0:00:03]}  Qc7 {[%clk 0:00:08]} 47. Qd4+ {[%clk 0:00:03]}  Qe5 {[%clk 0:00:08]} 48. Rg5 {[%clk 0:00:03]}  Qxd4 {[%clk 0:00:08]} 49. cxd4 {[%clk 0:00:04]}  Red7 {[%clk 0:00:08]} 50. Re5 {[%clk 0:00:04]}  Kf6 {[%clk 0:00:08]} 51. Ra5 {[%clk 0:00:03]}  Rd6 {[%clk 0:00:08]} 52. Rexd5 {[%clk 0:00:04]}  Rxd5 {[%clk 0:00:08]} 53. Rxd5 {[%clk 0:00:05]}  Rxa6 {[%clk 0:00:08]} 54. Re5 {[%clk 0:00:05]}  Ra1+ {[%clk 0:00:08]} 55. Kg2 {[%clk 0:00:05]}  Re1 {[%clk 0:00:08]} 56. Kg3 {[%clk 0:00:06]}  g5 {[%clk 0:00:07]} 57. h3 {[%clk 0:00:06]}  h5 {[%clk 0:00:07]} 58. Re8 {[%clk 0:00:05]}  Re2 {[%clk 0:00:06]} 59. Rf8+ {[%clk 0:00:05]}  Ke6 {[%clk 0:00:07]} 60. Re8+ {[%clk 0:00:05]}  Kd5 {[%clk 0:00:06]} 61. Re5+ {[%clk 0:00:06]}  Kxd4 {[%clk 0:00:06]} 62. Rxg5 {[%clk 0:00:06]}  h4+ {[%clk 0:00:06]} 63. Kxh4 {[%clk 0:00:05]}  Rxf2 {[%clk 0:00:06]} 64. Kg3 {[%clk 0:00:05]}  Rf3+ {[%clk 0:00:06]} 65. Kg4 {[%clk 0:00:06]}  Rf1 {[%clk 0:00:06]} 66. Ra5 {[%clk 0:00:06]}  e3 {[%clk 0:00:06]} 67. Ra4+ {[%clk 0:00:06]}  Kd3 {[%clk 0:00:06]} 68. Ra3+ {[%clk 0:00:07]}  Ke2 {[%clk 0:00:06]} 69. h4 {[%clk 0:00:06]}  Rg1+ {[%clk 0:00:06]} 70. Kf5 {[%clk 0:00:07]}  Kf2 {[%clk 0:00:06]} 71. h5 {[%clk 0:00:06]}  e2 {[%clk 0:00:07]} 72. Ra2 {[%clk 0:00:07]}  Rh1 {[%clk 0:00:06]} 73. Kg6 {[%clk 0:00:07]}  Kf1 {[%clk 0:00:07]} 74. Ra1+ {[%clk 0:00:06]}  e1=Q {[%clk 0:00:07]} 75. Rxe1+ {[%clk 0:00:07]}  Kxe1 {[%clk 0:00:07]} 76. h6 {[%clk 0:00:07]}  Kf2 {[%clk 0:00:07]} 77. h7 {[%clk 0:00:07]}  Kf3 {[%clk 0:00:06]} 78. Kg7 {[%clk 0:00:07]}  Kf4 {[%clk 0:00:06]} 79. h8=Q {[%clk 0:00:08]}  Rxh8 {[%clk 0:00:06]} 80. Kxh8 {[%clk 0:00:09]} 1/2-1/2

[Event "January 2 Late 2024"]
[Site "https://www.chess.com"]
[Date "2024.01.02"]
[Round "6"]
[White "Mazurkiewicz, Michal"]
[Black "Sowa, Ryan"]
[Result "1-0"]
[Board "106"]
[TimeControl "180+1"]
[WhiteFideId "1124943"]
[BlackFideId "30901693"]
[WhiteElo "2415"]
[BlackElo "2602"]
[WhiteTeam "POL"]
[BlackTeam "USA"]
[WhiteClock "0:00:07"]
[BlackClock "0:00:47"]

1. e4 {[%clk 0:03:00]}  b6 {[%clk 0:03:00]} 2. g3 {[%clk 0:02:59]}  Bb7 {[%clk 0:03:01]} 3. Bg2 {[%clk 0:03:00]}  e6 {[%clk 0:03:00]} 4. d3 {[%clk 0:03:00]}  Nf6 {[%clk 0:02:59]} 5. Nf3 {[%clk 0:03:00]}  d5 {[%clk 0:03:00]} 6. Nbd2 {[%clk 0:03:01]}  dxe4 {[%clk 0:02:59]} 7. dxe4 {[%clk 0:03:01]}  Nxe4 {[%clk 0:02:42]} 8. Ng5 {[%clk 0:03:01]}  Nd6 {[%clk 0:02:42]} 9. Bxb7 {[%clk 0:03:00]}  Nxb7 {[%clk 0:02:40]} 10. Nxf7 {[%clk 0:03:01]}  Qd5 {[%clk 0:02:25]} 11. O-O {[%clk 0:02:27]}  Kxf7 {[%clk 0:02:24]} 12. c4 {[%clk 0:02:27]}  Qd3 {[%clk 0:02:09]} 13. Re1 {[%clk 0:02:06]}  Nc6 {[%clk 0:01:44]} 14. Re3 {[%clk 0:01:43]}  Qd7 {[%clk 0:01:44]} 15. Qh5+ {[%clk 0:01:10]}  g6 {[%clk 0:01:33]} 16. Qf3+ {[%clk 0:01:07]}  Kg8 {[%clk 0:01:34]} 17. Ne4 {[%clk 0:01:06]}  Bg7 {[%clk 0:01:30]} 18. Rd3 {[%clk 0:00:58]}  Nd4 {[%clk 0:01:19]} 19. Nf6+ {[%clk 0:00:29]}  Bxf6 {[%clk 0:01:19]} 20. Qxf6 {[%clk 0:00:30]}  Ne2+ {[%clk 0:01:19]} 21. Kg2 {[%clk 0:00:11]}  Qc6+ {[%clk 0:01:11]} 22. Rf3 {[%clk 0:00:10]}  Qd7 {[%clk 0:00:55]} 23. Bh6 {[%clk 0:00:08]}  Qe8 {[%clk 0:00:50]} 24. Re1 {[%clk 0:00:07]}  Nd6 {[%clk 0:00:47]} 25. Qg7# {[%clk 0:00:07]} 1-0

[Event "January 2 Late 2024"]
[Site "https://www.chess.com"]
[Date "2024.01.02"]
[Round "6"]
[White "Cervantes Landeiro, Thalia"]
[Black "Zakarian, David"]
[Result "1/2-1/2"]
[Board "108"]
[TimeControl "180+1"]
[WhiteFideId "3520498"]
[BlackFideId "13301276"]
[WhiteElo "2569"]
[BlackElo "2402"]
[WhiteTeam "USA"]
[BlackTeam "ARM"]
[WhiteClock "0:00:03"]
[BlackClock "0:00:55"]

1. d4 {[%clk 0:02:42]}  Nf6 {[%clk 0:02:59]} 2. c4 {[%clk 0:02:41]}  e6 {[%clk 0:02:59]} 3. Nf3 {[%clk 0:02:41]}  b6 {[%clk 0:02:59]} 4. g3 {[%clk 0:02:41]}  Bb7 {[%clk 0:02:59]} 5. Bg2 {[%clk 0:02:42]}  Be7 {[%clk 0:03:00]} 6. O-O {[%clk 0:02:42]}  O-O {[%clk 0:03:00]} 7. Re1 {[%clk 0:02:43]}  Na6 {[%clk 0:02:55]} 8. Bg5 {[%clk 0:02:43]}  c5 {[%clk 0:02:55]} 9. Nc3 {[%clk 0:02:29]}  cxd4 {[%clk 0:02:52]} 10. Nxd4 {[%clk 0:02:24]}  Bxg2 {[%clk 0:02:53]} 11. Kxg2 {[%clk 0:02:24]}  Rc8 {[%clk 0:02:52]} 12. Qa4 {[%clk 0:01:53]}  Nb4 {[%clk 0:02:35]} 13. Qxa7 {[%clk 0:01:25]}  Rxc4 {[%clk 0:02:30]} 14. Nf3 {[%clk 0:01:22]}  Nc2 {[%clk 0:02:27]} 15. Qa6 {[%clk 0:01:11]}  Rc8 {[%clk 0:02:21]} 16. Qb5 {[%clk 0:01:02]}  Nxa1 {[%clk 0:02:20]} 17. Rxa1 {[%clk 0:01:02]}  d5 {[%clk 0:02:17]} 18. a4 {[%clk 0:00:53]}  Rc5 {[%clk 0:01:44]} 19. Qb3 {[%clk 0:00:52]}  Qc7 {[%clk 0:01:40]} 20. Nb5 {[%clk 0:00:50]}  Qc6 {[%clk 0:01:36]} 21. Nbd4 {[%clk 0:00:47]}  Qc7 {[%clk 0:01:32]} 22. Bf4 {[%clk 0:00:46]}  Qb7 {[%clk 0:01:28]} 23. Ra2 {[%clk 0:00:24]}  Ra8 {[%clk 0:01:21]} 24. Qd3 {[%clk 0:00:21]}  Ne4 {[%clk 0:01:17]} 25. b4 {[%clk 0:00:20]}  Rc4 {[%clk 0:01:16]} 26. Ne5 {[%clk 0:00:14]}  Rxb4 {[%clk 0:01:13]} 27. Nec6 {[%clk 0:00:12]}  Rbxa4 {[%clk 0:01:11]} 28. Rxa4 {[%clk 0:00:10]}  Rxa4 {[%clk 0:01:12]} 29. Qb5 {[%clk 0:00:08]}  Ra8 {[%clk 0:01:10]} 30. f3 {[%clk 0:00:05]}  Bc5 {[%clk 0:01:09]} 31. fxe4 {[%clk 0:00:04]}  dxe4 {[%clk 0:01:08]} 32. e3 {[%clk 0:00:02]}  h6 {[%clk 0:01:05]} 33. Ne5 {[%clk 0:00:02]}  Ra2+ {[%clk 0:01:02]} 34. Kh3 {[%clk 0:00:02]}  Qd5 {[%clk 0:01:00]} 35. Qe8+ {[%clk 0:00:02]}  Kh7 {[%clk 0:01:00]} 36. Qxf7 {[%clk 0:00:02]}  Bxd4 {[%clk 0:00:54]} 37. Qg6+ {[%clk 0:00:02]}  Kg8 {[%clk 0:00:54]} 38. Qe8+ {[%clk 0:00:03]}  Kh7 {[%clk 0:00:54]} 39. Qg6+ {[%clk 0:00:04]}  Kg8 {[%clk 0:00:54]} 40. Qf7+ {[%clk 0:00:04]}  Kh7 {[%clk 0:00:55]} 41. Qg6+ {[%clk 0:00:03]} 1/2-1/2

[Event "January 2 Late 2024"]
[Site "https://www.chess.com"]
[Date "2024.01.02"]
[Round "6"]
[White "Biernacki, Mark"]
[Black "Berezin, Viktor"]
[Result "0-1"]
[Board "115"]
[TimeControl "180+1"]
[WhiteFideId "2082322"]
[BlackFideId "14107872"]
[WhiteElo "2325"]
[BlackElo "2508"]
[WhiteTeam "USA"]
[BlackTeam "UKR"]
[WhiteClock "0:00:00"]
[BlackClock "0:00:16"]

1. e4 {[%clk 0:03:00]}  c6 {[%clk 0:02:59]} 2. d4 {[%clk 0:03:00]}  d5 {[%clk 0:02:56]} 3. e5 {[%clk 0:03:00]}  Bf5 {[%clk 0:02:54]} 4. h4 {[%clk 0:03:00]}  h5 {[%clk 0:02:51]} 5. Bd3 {[%clk 0:03:00]}  Bxd3 {[%clk 0:02:43]} 6. Qxd3 {[%clk 0:03:01]}  e6 {[%clk 0:02:43]} 7. Bg5 {[%clk 0:02:59]}  Qb6 {[%clk 0:02:42]} 8. Nd2 {[%clk 0:02:40]}  Ne7 {[%clk 0:02:41]} 9. Ngf3 {[%clk 0:02:37]}  Nf5 {[%clk 0:02:40]} 10. c4 {[%clk 0:02:30]}  Nd7 {[%clk 0:02:25]} 11. O-O {[%clk 0:02:13]}  Be7 {[%clk 0:02:24]} 12. c5 {[%clk 0:02:12]}  Qd8 {[%clk 0:02:18]} 13. b4 {[%clk 0:02:04]}  Bxg5 {[%clk 0:02:16]} 14. hxg5 {[%clk 0:02:04]}  h4 {[%clk 0:02:16]} 15. b5 {[%clk 0:01:56]}  h3 {[%clk 0:02:10]} 16. g4 {[%clk 0:01:54]}  Nh4 {[%clk 0:02:07]} 17. Kh2 {[%clk 0:01:42]}  Qa5 {[%clk 0:01:33]} 18. a4 {[%clk 0:01:26]}  Nf8 {[%clk 0:01:25]} 19. Nxh4 {[%clk 0:01:15]}  Rxh4 {[%clk 0:01:23]} 20. Qe2 {[%clk 0:01:15]}  Ng6 {[%clk 0:01:18]} 21. f4 {[%clk 0:01:14]}  Qc3 {[%clk 0:01:09]} 22. Kh1 {[%clk 0:00:32]}  Ke7 {[%clk 0:00:45]} 23. Rab1 {[%clk 0:00:32]}  b6 {[%clk 0:00:34]} 24. bxc6 {[%clk 0:00:30]}  Rc8 {[%clk 0:00:34]} 25. cxb6 {[%clk 0:00:25]}  axb6 {[%clk 0:00:35]} 26. Rxb6 {[%clk 0:00:24]}  Kf8 {[%clk 0:00:19]} 27. f5 {[%clk 0:00:10]}  exf5 {[%clk 0:00:18]} 28. Rxf5 {[%clk 0:00:04]}  Kg8 {[%clk 0:00:18]} 29. Rf1 {[%clk 0:00:01]}  Rxc6 {[%clk 0:00:16]} 30. e6 {[%clk 0:00:01]}  Rxb6 {[%clk 0:00:15]} 31. exf7+ {[%clk 0:00:00]}  Kh7 {[%clk 0:00:16]} 0-1

[Event "January 2 Late 2024"]
[Site "https://www.chess.com"]
[Date "2024.01.02"]
[Round "6"]
[White "Shuvalov, Evgenij"]
[Black "Kornyukov, Alexey"]
[Result "1-0"]
[Board "116"]
[TimeControl "180+1"]
[WhiteFideId "4187237"]
[BlackFideId "4150457"]
[WhiteElo "2506"]
[BlackElo "2320"]
[WhiteTeam "FID"]
[BlackTeam "RUS"]
[WhiteClock "0:00:13"]
[BlackClock "0:00:00"]

1. d4 {[%clk 0:03:00]}  d5 {[%clk 0:02:54]} 2. c4 {[%clk 0:03:00]}  e6 {[%clk 0:02:54]} 3. Nc3 {[%clk 0:02:59]}  a6 {[%clk 0:02:54]} 4. c5 {[%clk 0:02:58]}  b6 {[%clk 0:02:53]} 5. cxb6 {[%clk 0:02:58]}  cxb6 {[%clk 0:02:53]} 6. Bf4 {[%clk 0:02:57]}  Bd6 {[%clk 0:02:46]} 7. Bxd6 {[%clk 0:02:56]}  Qxd6 {[%clk 0:02:46]} 8. Nf3 {[%clk 0:02:57]}  Nf6 {[%clk 0:02:45]} 9. e3 {[%clk 0:02:57]}  O-O {[%clk 0:02:44]} 10. Bd3 {[%clk 0:02:57]}  b5 {[%clk 0:02:44]} 11. O-O {[%clk 0:02:53]}  Nbd7 {[%clk 0:02:44]} 12. Qe2 {[%clk 0:02:52]}  Bb7 {[%clk 0:02:41]} 13. a4 {[%clk 0:02:52]}  b4 {[%clk 0:02:40]} 14. Nb1 {[%clk 0:02:52]}  a5 {[%clk 0:02:37]} 15. Nbd2 {[%clk 0:02:51]}  Nb6 {[%clk 0:02:25]} 16. Nb3 {[%clk 0:02:48]}  Nc4 {[%clk 0:02:25]} 17. Rfc1 {[%clk 0:02:27]}  Ba6 {[%clk 0:02:18]} 18. Nc5 {[%clk 0:02:25]}  b3 {[%clk 0:01:34]} 19. Nxa6 {[%clk 0:02:14]}  Rxa6 {[%clk 0:01:32]} 20. Bxc4 {[%clk 0:02:05]}  dxc4 {[%clk 0:01:33]} 21. Qxc4 {[%clk 0:02:05]}  Rb6 {[%clk 0:01:25]} 22. Rc3 {[%clk 0:02:01]}  Rfb8 {[%clk 0:01:06]} 23. Nd2 {[%clk 0:01:17]}  g6 {[%clk 0:00:39]} 24. h3 {[%clk 0:01:01]}  Nd5 {[%clk 0:00:21]} 25. Rxb3 {[%clk 0:00:55]}  Rxb3 {[%clk 0:00:20]} 26. Nxb3 {[%clk 0:00:56]}  Rb4 {[%clk 0:00:20]} 27. Qc8+ {[%clk 0:00:43]}  Kg7 {[%clk 0:00:20]} 28. Nxa5 {[%clk 0:00:41]}  Qb6 {[%clk 0:00:10]} 29. Nc4 {[%clk 0:00:35]}  Qa7 {[%clk 0:00:10]} 30. a5 {[%clk 0:00:31]}  Ne7 {[%clk 0:00:10]} 31. Qc5 {[%clk 0:00:21]}  Qxc5 {[%clk 0:00:09]} 32. dxc5 {[%clk 0:00:22]}  Rxc4 {[%clk 0:00:09]} 33. a6 {[%clk 0:00:23]}  Nc6 {[%clk 0:00:09]} 34. a7 {[%clk 0:00:22]}  Nxa7 {[%clk 0:00:09]} 35. Rxa7 {[%clk 0:00:23]}  Rxc5 {[%clk 0:00:10]} 36. Rb7 {[%clk 0:00:22]}  e5 {[%clk 0:00:08]} 37. e4 {[%clk 0:00:21]}  Rc1+ {[%clk 0:00:06]} 38. Kh2 {[%clk 0:00:21]}  Rc2 {[%clk 0:00:06]} 39. Kg3 {[%clk 0:00:21]}  g5 {[%clk 0:00:05]} 40. Kf3 {[%clk 0:00:18]}  h5 {[%clk 0:00:05]} 41. Ke3 {[%clk 0:00:18]}  Kg6 {[%clk 0:00:04]} 42. g3 {[%clk 0:00:17]}  h4 {[%clk 0:00:03]} 43. gxh4 {[%clk 0:00:17]}  gxh4 {[%clk 0:00:03]} 44. Kf3 {[%clk 0:00:17]}  f6 {[%clk 0:00:01]} 45. b4 {[%clk 0:00:16]}  Kg5 {[%clk 0:00:01]} 46. Rb8 {[%clk 0:00:16]}  Rc3+ {[%clk 0:00:01]} 47. Kg2 {[%clk 0:00:16]}  Rc4 {[%clk 0:00:00]} 48. b5 {[%clk 0:00:13]} 1-0

[Event "January 2 Late 2024"]
[Site "https://www.chess.com"]
[Date "2024.01.02"]
[Round "6"]
[White "Garcia Almaguer, Juan Manuel"]
[Black "Bryant, Todd"]
[Result "1-0"]
[Board "117"]
[TimeControl "180+1"]
[WhiteFideId "5110491"]
[BlackFideId "2031299"]
[WhiteElo "2492"]
[BlackElo "2286"]
[WhiteTeam "MEX"]
[BlackTeam "USA"]
[WhiteClock "0:00:58"]
[BlackClock "0:00:05"]

1. e4 {[%clk 0:02:58]}  c5 {[%clk 0:03:00]} 2. Nf3 {[%clk 0:02:58]}  d6 {[%clk 0:03:00]} 3. d4 {[%clk 0:02:57]}  cxd4 {[%clk 0:03:01]} 4. Nxd4 {[%clk 0:02:58]}  Nf6 {[%clk 0:03:00]} 5. Nc3 {[%clk 0:02:58]}  g6 {[%clk 0:02:59]} 6. Be3 {[%clk 0:02:49]}  Bg7 {[%clk 0:02:59]} 7. Be2 {[%clk 0:02:47]}  O-O {[%clk 0:02:58]} 8. f3 {[%clk 0:02:35]}  Nc6 {[%clk 0:02:55]} 9. Qd2 {[%clk 0:02:35]}  d5 {[%clk 0:02:53]} 10. Nxc6 {[%clk 0:02:20]}  bxc6 {[%clk 0:02:52]} 11. e5 {[%clk 0:02:20]}  Nd7 {[%clk 0:02:51]} 12. f4 {[%clk 0:02:21]}  e6 {[%clk 0:02:47]} 13. O-O {[%clk 0:02:16]}  c5 {[%clk 0:02:47]} 14. Bf2 {[%clk 0:02:15]}  Bb7 {[%clk 0:02:44]} 15. Nb5 {[%clk 0:02:15]}  Bc6 {[%clk 0:02:27]} 16. c4 {[%clk 0:02:12]}  Bxb5 {[%clk 0:02:10]} 17. cxb5 {[%clk 0:02:12]}  f6 {[%clk 0:02:08]} 18. Bg4 {[%clk 0:02:04]}  Qe7 {[%clk 0:01:59]} 19. exf6 {[%clk 0:02:01]}  Qxf6 {[%clk 0:01:59]} 20. Rae1 {[%clk 0:01:55]}  Rae8 {[%clk 0:01:56]} 21. Re2 {[%clk 0:01:54]}  h5 {[%clk 0:01:18]} 22. Bh3 {[%clk 0:01:52]}  Bh6 {[%clk 0:01:19]} 23. g3 {[%clk 0:01:49]}  Rf7 {[%clk 0:01:00]} 24. Rfe1 {[%clk 0:01:49]}  Rfe7 {[%clk 0:00:51]} 25. Rxe6 {[%clk 0:01:41]}  Rxe6 {[%clk 0:00:51]} 26. Qxd5 {[%clk 0:01:41]}  Nf8 {[%clk 0:00:51]} 27. Bxc5 {[%clk 0:01:40]}  Kh7 {[%clk 0:00:30]} 28. Bxe6 {[%clk 0:01:35]}  Rxe6 {[%clk 0:00:23]} 29. Rxe6 {[%clk 0:01:31]}  Qxe6 {[%clk 0:00:18]} 30. Qxe6 {[%clk 0:01:30]}  Nxe6 {[%clk 0:00:19]} 31. Bxa7 {[%clk 0:01:31]}  Bg7 {[%clk 0:00:18]} 32. Kf2 {[%clk 0:01:23]}  Kg8 {[%clk 0:00:17]} 33. Ke3 {[%clk 0:01:23]}  Kf7 {[%clk 0:00:18]} 34. Ke4 {[%clk 0:01:20]}  Ke7 {[%clk 0:00:18]} 35. Kd5 {[%clk 0:01:20]}  Kd7 {[%clk 0:00:18]} 36. b6 {[%clk 0:01:17]}  Nd8 {[%clk 0:00:16]} 37. b4 {[%clk 0:01:12]}  Bf8 {[%clk 0:00:15]} 38. Kc4 {[%clk 0:01:06]}  Kc6 {[%clk 0:00:15]} 39. a4 {[%clk 0:01:04]}  Bd6 {[%clk 0:00:13]} 40. b5+ {[%clk 0:01:02]}  Kb7 {[%clk 0:00:12]} 41. a5 {[%clk 0:01:03]}  Ne6 {[%clk 0:00:11]} 42. a6+ {[%clk 0:01:03]}  Ka8 {[%clk 0:00:12]} 43. Kd5 {[%clk 0:01:01]}  Nxf4+ {[%clk 0:00:10]} 44. Kxd6 {[%clk 0:00:59]}  Nd3 {[%clk 0:00:09]} 45. Kc7 {[%clk 0:00:58]}  Nc5 {[%clk 0:00:10]} 46. b7+ {[%clk 0:00:59]}  Nxb7 {[%clk 0:00:04]} 47. axb7+ {[%clk 0:01:00]}  Kxa7 {[%clk 0:00:05]} 48. b8=Q# {[%clk 0:00:58]} 1-0